fUSD/lending_fUSD_20250615
["ID","MTS","AMOUNT","RATE_DAILY","PERIOD"]
[365834218,1749949835982,-490.0,0.00016997,2]
[365834219,1749949835991,-511.84,0.00016997,2]
[365834220,1749949836001,-490.0,0.00016997,2]
[365834221,1749949836010,-490.0,0.00016997,2]
[365834222,1749949836020,-490.0,0.00016997,2]
[365834223,1749949836030,-490.0,0.00016997,2]
[365834224,1749949836041,-1311.9,0.00016997,2]
[365834225,1749949836050,-1084.34,0.00016997,2]
[365834226,1749949836059,-490.0,0.00016997,2]
[365834227,1749949836068,-490.0,0.00016997,2]
[365834228,1749949836077,-490.0,0.00016997,2]
[365834229,1749949836086,-490.0,0.00016997,2]
[365834230,1749949836095,-745.86,0.00016997,2]
[365834231,1749949836105,-490.0,0.00016997,2]
[365834232,1749949836114,-490.0,0.00016997,2]
[365834233,1749949836123,-490.0,0.00016997,2]
[365834234,1749949836132,-490.0,0.00016997,2]
[365834235,1749949836141,-158.58646671,0.00016997,2]
[365834236,1749949836150,-490.0,0.00016997,2]
[365834237,1749949836159,-611.56,0.00016997,2]
[365834238,1749949836168,-490.0,0.00016997,2]
[365834239,1749949836177,-490.0,0.00016997,2]
[365834240,1749949836186,-602.49795146,0.00016997,2]
[365834241,1749949836195,-490.0,0.00016997,2]
[365834242,1749949836205,-654.56,0.00016997,2]
[365834243,1749949836214,-490.0,0.00016997,2]
[365834244,1749949836223,-490.0,0.00016997,2]
[365834245,1749949836233,-490.0,0.00016997,2]
[365834246,1749949836242,-653.41,0.00016997,2]
[365834247,1749949836251,-490.0,0.00016997,2]
[365834248,1749949836260,-490.0,0.00016997,2]
[365834249,1749949836270,-490.0,0.00016997,2]
[365834250,1749949836279,-490.0,0.00016997,2]
[365834251,1749949836288,-490.0,0.00016997,2]
[365834252,1749949836297,-36.41318507,0.00016997,2]
[365834253,1749949836348,-1488.41681493,0.00016997,2]
[365834254,1749949836358,-530.01336672,0.00016997,2]
[365834255,1749949836367,-490.0,0.00016997,2]
[365834256,1749949836377,-490.0,0.00016997,2]
[365834257,1749949836386,-910.53,0.00016997,2]
[365834258,1749949836396,-490.0,0.00016997,2]
[365834259,1749949836405,-894.34,0.00016997,2]
[365834260,1749949836414,-490.0,0.00016997,2]
[365834261,1749949836423,-490.0,0.00016997,2]
[365834262,1749949836432,-803.63,0.00016997,2]
[365834263,1749949836441,-2636.9,0.00016997,2]
[365834264,1749949836450,-562.91,0.00016997,2]
[365834265,1749949836459,-490.0,0.00016997,2]
[365834266,1749949836469,-1259.27,0.00016997,2]
[365834267,1749949836478,-547.53,0.00016997,2]
[365834268,1749949836487,-490.0,0.00016997,2]
[365834269,1749949836495,-490.0,0.00016997,2]
[365834270,1749949836504,-1058.01,0.00016997,2]
[365834271,1749949836513,-671.06,0.00016997,2]
[365834272,1749949836523,-490.0,0.00016997,2]
[365834273,1749949836532,-1434.05,0.00016997,2]
[365834274,1749949836541,-490.0,0.00016997,2]
[365834275,1749949836550,-490.0,0.00016997,2]
[365834276,1749949836560,-490.0,0.00016997,2]
[365834277,1749949836570,-490.0,0.00016997,2]
[365834278,1749949836579,-746.01,0.00016997,2]
[365834279,1749949836588,-1018.11,0.00016997,2]
[365834280,1749949836596,-2489.58,0.00016997,2]
[365834281,1749949836605,-490.0,0.00016997,2]
[365834282,1749949836614,-1417.28,0.00016997,2]
[365834283,1749949836623,-490.0,0.00016997,2]
[365834284,1749949836632,-490.0,0.00016997,2]
[365834285,1749949836641,-490.0,0.00016997,2]
[365834286,1749949836651,-3444.74,0.00016997,2]
[365834287,1749949836661,-490.0,0.00016997,2]
[365834288,1749949836670,-490.0,0.00016997,2]
[365834289,1749949836681,-490.0,0.00016997,2]
[365834290,1749949836691,-490.0,0.00016997,2]
[365834291,1749949836702,-490.0,0.00016997,2]
[365834292,1749949836713,-1296.51,0.00016997,2]
[365834293,1749949836722,-490.0,0.00016997,2]
[365834294,1749949836731,-1643.39,0.00016997,2]
[365834295,1749949836740,-490.0,0.00016997,2]
[365834296,1749949836749,-490.0,0.00016997,2]
[365834297,1749949836759,-1372.87,0.00016997,2]
[365834298,1749949836770,-1112.22,0.00016997,2]
[365834299,1749949836779,-490.0,0.00016997,2]
[365834300,1749949836788,-490.0,0.00016997,2]
[365834301,1749949836797,-1444.08,0.00016997,2]
[365834302,1749949836807,-251.73674887,0.00016997,2]
[365834303,1749949836818,-773.01,0.00016997,2]
[365834304,1749949836827,-490.0,0.00016997,2]
[365834305,1749949836836,-490.0,0.00016997,2]
[365834306,1749949836845,-490.0,0.00016997,2]
[365834307,1749949836855,-490.0,0.00016997,2]
[365834308,1749949836864,-490.0,0.00016997,2]
[365834309,1749949836873,-1536.99,0.00016997,2]
[365834310,1749949836882,-490.0,0.00016997,2]
[365834311,1749949836891,-490.0,0.00016997,2]
[365834312,1749949836900,-757.64,0.00016997,2]
[365834313,1749949836909,-490.0,0.00016997,2]
[365834314,1749949836919,-2554.27,0.00016997,2]
[365834315,1749949836928,-490.0,0.00016997,2]
[365834316,1749949836937,-490.0,0.00016997,2]
[365834317,1749949836946,-1257.39,0.00016997,2]
[365834318,1749949836957,-1168.4,0.00016997,2]
[365834319,1749949836967,-916.9,0.00016997,2]
[365834320,1749949836978,-768.48,0.00016997,2]
[365834321,1749949836989,-490.0,0.00016997,2]
[365834322,1749949836999,-490.0,0.00016997,2]
[365834323,1749949837010,-820.94,0.00016997,2]
[365834324,1749949837019,-490.0,0.00016997,2]
[365834325,1749949837028,-490.0,0.00016997,2]
[365834326,1749949837039,-490.0,0.00016997,2]
[365834327,1749949837049,-490.0,0.00016997,2]
[365834328,1749949837058,-1114.04,0.00016997,2]
[365834329,1749949837067,-490.0,0.00016997,2]
[365834330,1749949837078,-490.0,0.00016997,2]
[365834331,1749949837087,-490.0,0.00016997,2]
[365834332,1749949837097,-490.0,0.00016997,2]
[365834333,1749949837106,-490.0,0.00016997,2]
[365834334,1749949837116,-490.0,0.00016997,2]
[365834335,1749949837125,-713.87,0.00016997,2]
[365834336,1749949837134,-490.0,0.00016997,2]
[365834337,1749949837143,-490.0,0.00016997,2]
[365834338,1749949837153,-2220.52994999,0.00016997,2]
[365834339,1749949837170,-798.87005001,0.00016997,2]
[365834340,1749949837180,-238.46624999,0.00016997,2]
[365834493,1749949839309,-1124.01441455,0.0001615,2]
[365834496,1749949839322,-452.98303801,0.0001615,2]
[365834498,1749949839331,-884.0,0.00016791,2]
[365834501,1749949839341,-1841.69,0.00016995,2]
[365834503,1749949839351,-490.0,0.00016995,2]
[365834506,1749949839360,-659.7,0.00016995,2]
[365834508,1749949839370,-490.0,0.00016995,2]
[365834510,1749949839379,-490.0,0.00016995,2]
[365834512,1749949839391,-251.53375001,0.00016997,2]
[365834515,1749949839401,-490.0,0.00016997,2]
[365834518,1749949839411,-490.0,0.00016997,2]
[365834520,1749949839420,-500.0,0.00016997,2]
[365834523,1749949839430,-520.66331874,0.00016997,2]
[365834526,1749949839439,-490.0,0.00016997,2]
[365834528,1749949839449,-490.0,0.00016997,2]
[365834530,1749949839458,-490.0,0.00016997,2]
[365834532,1749949839467,-519.06,0.00016997,2]
[365834534,1749949839476,-490.0,0.00016997,2]
[365834536,1749949839485,-798.75,0.00016997,2]
[365834538,1749949839494,-490.0,0.00016997,2]
[365834540,1749949839504,-490.0,0.00016997,2]
[365834542,1749949839514,-1617.56,0.00016997,2]
[365834544,1749949839524,-490.0,0.00016997,2]
[365834546,1749949839534,-490.0,0.00016997,2]
[365834548,1749949839544,-490.0,0.00016997,2]
[365834550,1749949839554,-490.0,0.00016997,2]
[365834552,1749949839564,-3253.21,0.00016997,2]
[365834554,1749949839573,-490.0,0.00016997,2]
[365834556,1749949839582,-490.0,0.00016997,2]
[365834558,1749949839592,-1008.43,0.00016997,2]
[365834560,1749949839601,-482.1575213,0.00016997,2]
[365834562,1749949839610,-490.0,0.00016997,2]
[365834564,1749949839619,-490.0,0.00016997,2]
[365834566,1749949839628,-490.0,0.00016997,2]
[365834568,1749949839639,-490.0,0.00016997,2]
[365834570,1749949839650,-490.0,0.00016997,2]
[365834572,1749949839659,-1569.81,0.00016997,2]
[365834574,1749949839669,-490.0,0.00016997,2]
[365834576,1749949839678,-490.0,0.00016997,2]
[365834578,1749949839688,-594.73,0.00016997,2]
[365834580,1749949839697,-490.0,0.00016997,2]
[365834582,1749949839707,-490.0,0.00016997,2]
[365834584,1749949839716,-490.0,0.00016997,2]
[365834586,1749949839726,-490.0,0.00016997,2]
[365834588,1749949839735,-561.5,0.00016997,2]
[365834590,1749949839744,-490.0,0.00016997,2]
[365834592,1749949839753,-490.0,0.00016997,2]
[365834594,1749949839764,-4696.26,0.00016997,2]
[365834596,1749949839774,-1739.44,0.00016997,2]
[365834598,1749949839783,-490.0,0.00016997,2]
[365834600,1749949839793,-1221.14,0.00016997,2]
[365834602,1749949839802,-490.0,0.00016997,2]
[365834604,1749949839812,-509.83,0.00016997,2]
[365834606,1749949839821,-713.08,0.00016997,2]
[365834608,1749949839833,-490.0,0.00016997,2]
[365834610,1749949839843,-542.7,0.00016997,2]
[365834612,1749949839852,-1261.03702891,0.00016997,2]
[365834614,1749949839866,-133.61297109,0.00016997,2]
[365834616,1749949839875,-490.0,0.00016997,2]
[365834618,1749949839884,-490.0,0.00016997,2]
[365834620,1749949839893,-1717.45,0.00016997,2]
[365834622,1749949839902,-635.61,0.00016997,2]
[365834624,1749949839912,-490.0,0.00016997,2]
[365834626,1749949839921,-490.0,0.00016997,2]
[365834628,1749949839930,-490.0,0.00016997,2]
[365834631,1749949840052,-490.0,0.00016997,2]
[365834632,1749949840062,-532.16,0.00016997,2]
[365834633,1749949840071,-490.0,0.00016997,2]
[365834634,1749949840080,-490.0,0.00016997,2]
[365834635,1749949840090,-1117.0,0.00016997,2]
[365834636,1749949840099,-800.29,0.00016997,2]
[365834637,1749949840108,-490.0,0.00016997,2]
[365834638,1749949840118,-490.0,0.00016997,2]
[365834639,1749949840127,-490.0,0.00016997,2]
[365834640,1749949840137,-490.0,0.00016997,2]
[365834641,1749949840146,-490.0,0.00016997,2]
[365834642,1749949840155,-490.0,0.00016997,2]
[365834643,1749949840165,-490.0,0.00016997,2]
[365834644,1749949840174,-490.0,0.00016997,2]
[365834645,1749949840184,-490.0,0.00016997,2]
[365834646,1749949840194,-490.0,0.00016997,2]
[365834647,1749949840203,-422.66855741,0.00016997,2]
[365834648,1749949840213,-490.0,0.00016997,2]
[365834649,1749949840222,-490.0,0.00016997,2]
[365834650,1749949840231,-930.57,0.00016997,2]
[365834651,1749949840240,-2950.12,0.00016997,2]
[365834652,1749949840250,-490.0,0.00016997,2]
[365834653,1749949840260,-481.29062364,0.00016997,2]
[365834654,1749949840269,-490.0,0.00016997,2]
[365834655,1749949840280,-490.0,0.00016997,2]
[365834656,1749949840289,-490.0,0.00016997,2]
[365834657,1749949840299,-1806.45,0.00016997,2]
[365834658,1749949840308,-490.0,0.00016997,2]
[365834659,1749949840318,-490.0,0.00016997,2]
[365834660,1749949840327,-500.0,0.00016997,2]
[365834661,1749949840337,-500.0,0.00016997,2]
[365834662,1749949840347,-500.0,0.00016997,2]
[365834664,1749949840357,-490.0,0.00016997,2]
[365834665,1749949840366,-586.43,0.00016997,2]
[365834667,1749949840375,-760.13,0.00016997,2]
[365834668,1749949840385,-490.0,0.00016997,2]
[365834669,1749949840395,-490.0,0.00016997,2]
[365834670,1749949840404,-778.89,0.00016997,2]
[365834671,1749949840414,-1436.99,0.00016997,2]
[365834672,1749949840423,-830.43,0.00016997,2]
[365834673,1749949840435,-490.0,0.00016997,2]
[365834674,1749949840445,-490.0,0.00016997,2]
[365834675,1749949840454,-490.0,0.00016997,2]
[365834676,1749949840463,-490.0,0.00016997,2]
[365834677,1749949840473,-490.0,0.00016997,2]
[365834678,1749949840482,-490.0,0.00016997,2]
[365834679,1749949840491,-490.0,0.00016997,2]
[365834680,1749949840501,-490.0,0.00016997,2]
[365834681,1749949840510,-766.23,0.00016997,2]
[365834682,1749949840519,-490.0,0.00016997,2]
[365834683,1749949840529,-490.0,0.00016997,2]
[365834684,1749949840539,-490.0,0.00016997,2]
[365834685,1749949840548,-465.02056825,0.00016997,2]
[365834686,1749949840556,-490.0,0.00016997,2]
[365834687,1749949840565,-490.0,0.00016997,2]
[365834688,1749949840574,-1241.12,0.00016997,2]
[365834689,1749949840583,-490.0,0.00016997,2]
[365834690,1749949840592,-490.0,0.00016997,2]
[365834691,1749949840601,-490.0,0.00016997,2]
[365834692,1749949840611,-490.0,0.00016997,2]
[365834693,1749949840620,-637.6,0.00016997,2]
[365834694,1749949840629,-1274.43,0.00016997,2]
[365834695,1749949840638,-490.0,0.00016997,2]
[365834696,1749949840647,-490.0,0.00016997,2]
[365834697,1749949840656,-490.0,0.00016997,2]
[365834698,1749949840665,-1275.05,0.00016997,2]
[365834699,1749949840674,-490.0,0.00016997,2]
[365834700,1749949840683,-490.0,0.00016997,2]
[365834701,1749949840693,-490.0,0.00016997,2]
[365834702,1749949840702,-490.0,0.00016997,2]
[365834703,1749949840711,-490.0,0.00016997,2]
[365834704,1749949840720,-490.0,0.00016997,2]
[365834705,1749949840729,-490.0,0.00016997,2]
[365834706,1749949840738,-490.0,0.00016997,2]
[365834707,1749949840746,-601.8,0.00016997,2]
[365834708,1749949840755,-38.65727961,0.00016997,2]
[365834709,1749949840769,-963.89272039,0.00016997,2]
[365834710,1749949840779,-490.0,0.00016997,2]
[365834711,1749949840792,-937.58,0.00016997,2]
[365834712,1749949840801,-490.0,0.00016997,2]
[365834713,1749949840810,-1164.73,0.00016997,2]
[365834714,1749949840819,-268.09071362,0.00016997,2]
[365834715,1749949840839,-221.90928638,0.00016997,2]
[365834716,1749949840849,-2263.12,0.00016997,2]
[365834717,1749949840858,-490.0,0.00016997,2]
[365834718,1749949840867,-769.77,0.00016997,2]
[365834719,1749949840876,-490.0,0.00016997,2]
[365834720,1749949840885,-523.56098956,0.00016997,2]
[365834721,1749949840895,-490.0,0.00016997,2]
[365834722,1749949840904,-2386.39,0.00016997,2]
[365834723,1749949840913,-490.0,0.00016997,2]
[365834724,1749949840923,-490.0,0.00016997,2]
[365834725,1749949840932,-490.0,0.00016997,2]
[365834726,1749949840942,-570.32,0.00016997,2]
[365834727,1749949840952,-490.0,0.00016997,2]
[365834728,1749949840969,-490.0,0.00016997,2]
[365834729,1749949840979,-492.78802226,0.00016997,2]
[365834730,1749949840990,-3097.2,0.00016997,2]
[365834731,1749949840999,-490.0,0.00016997,2]
[365834732,1749949841008,-490.0,0.00016997,2]
[365834733,1749949841017,-490.0,0.00016997,2]
[365834734,1749949841026,-490.0,0.00016997,2]
[365834735,1749949841035,-490.0,0.00016997,2]
[365834736,1749949841044,-490.0,0.00016997,2]
[365834737,1749949841053,-490.0,0.00016997,2]
[365834738,1749949841063,-490.0,0.00016997,2]
[365834739,1749949841072,-490.94231495,0.00016997,2]
[365834740,1749949841081,-1881.14,0.00016997,2]
[365834741,1749949841090,-490.0,0.00016997,2]
[365834742,1749949841100,-490.0,0.00016997,2]
[365834743,1749949841109,-490.0,0.00016997,2]
[365834744,1749949841118,-490.0,0.00016997,2]
[365834745,1749949841135,-490.0,0.00016997,2]
[365834746,1749949841150,-490.0,0.00016997,2]
[365834747,1749949841160,-490.0,0.00016997,2]
[365834748,1749949841170,-490.0,0.00016997,2]
[365834749,1749949841179,-490.0,0.00016997,2]
[365834750,1749949841189,-490.0,0.00016997,2]
[365834751,1749949841198,-613.28,0.00016997,2]
[365834752,1749949841207,-490.0,0.00016997,2]
[365834753,1749949841217,-490.0,0.00016997,2]
[365834754,1749949841227,-5148.39,0.00016997,2]
[365834755,1749949841236,-490.0,0.00016997,2]
[365834756,1749949841246,-1139.92,0.00016997,2]
[365834757,1749949841255,-490.0,0.00016997,2]
[365834758,1749949841264,-490.0,0.00016997,2]
[365834759,1749949841274,-490.0,0.00016997,2]
[365834760,1749949841283,-490.0,0.00016997,2]
[365834761,1749949841292,-873.17,0.00016997,2]
[365834762,1749949841302,-490.0,0.00016997,2]
[365834763,1749949841311,-3482.22,0.00016997,2]
[365834764,1749949841321,-490.0,0.00016997,2]
[365834765,1749949841331,-490.0,0.00016997,2]
[365834766,1749949841341,-490.0,0.00016997,2]
[365834767,1749949841350,-490.0,0.00016997,2]
[365834768,1749949841360,-490.0,0.00016997,2]
[365834769,1749949841370,-490.0,0.00016997,2]
[365834770,1749949841379,-490.0,0.00016997,2]
[365834771,1749949841390,-490.0,0.00016997,2]
[365834772,1749949841399,-3346.75,0.00016997,2]
[365834773,1749949841409,-490.0,0.00016997,2]
[365834774,1749949841418,-490.0,0.00016997,2]
[365834775,1749949841428,-620.96,0.00016997,2]
[365834776,1749949841437,-3036.69,0.00016997,2]
[365834777,1749949841447,-498.14,0.00016997,2]
[365834778,1749949841456,-490.0,0.00016997,2]
[365834779,1749949841465,-839.86,0.00016997,2]
[365834780,1749949841474,-490.0,0.00016997,2]
[365834781,1749949841483,-490.0,0.00016997,2]
[365834782,1749949841492,-1100.37,0.00016997,2]
[365834783,1749949841502,-490.0,0.00016997,2]
[365834784,1749949841511,-490.0,0.00016997,2]
[365834785,1749949841521,-500.82988808,0.00016997,2]
[365834786,1749949841532,-490.0,0.00016997,2]
[365834787,1749949841542,-490.0,0.00016997,2]
[365834788,1749949841551,-490.0,0.00016997,2]
[365834789,1749949841561,-368.02079636,0.00016997,2]
[365834790,1749949841570,-721.81,0.00016997,2]
[365834791,1749949841580,-490.0,0.00016997,2]
[365834792,1749949841589,-490.0,0.00016997,2]
[365834793,1749949841599,-490.0,0.00016997,2]
[365834794,1749949841608,-520.41,0.00016997,2]
[365834795,1749949841617,-490.0,0.00016997,2]
[365834796,1749949841627,-490.0,0.00016997,2]
[365834797,1749949841637,-490.0,0.00016997,2]
[365834798,1749949841647,-490.0,0.00016997,2]
[365834799,1749949841656,-490.0,0.00016997,2]
[365834800,1749949841665,-490.0,0.00016997,2]
[365834801,1749949841675,-490.0,0.00016997,2]
[365834802,1749949841684,-5997.17,0.00016997,2]
[365834803,1749949841694,-2152.57,0.00016997,2]
[365834804,1749949841703,-490.0,0.00016997,2]
[365834805,1749949841713,-993.89,0.00016997,2]
[365834806,1749949841723,-490.0,0.00016997,2]
[365834807,1749949841732,-2022.35,0.00016997,2]
[365834808,1749949841741,-490.0,0.00016997,2]
[365834809,1749949841751,-736.37,0.00016997,2]
[365834810,1749949841760,-490.0,0.00016997,2]
[365834811,1749949841769,-490.0,0.00016997,2]
[365834812,1749949841778,-11546.65,0.00016997,2]
[365834813,1749949841789,-490.0,0.00016997,2]
[365834814,1749949841798,-2360.8,0.00016997,2]
[365834815,1749949841807,-490.0,0.00016997,2]
[365834816,1749949841816,-4478.76,0.00016997,2]
[365834817,1749949841825,-490.0,0.00016997,2]
[365834818,1749949841834,-500.0,0.00016997,2]
[365834819,1749949841843,-500.0,0.00016997,2]
[365834820,1749949841853,-500.0,0.00016997,2]
[365834821,1749949841862,-1994.32738901,0.00016997,2]
[365834833,1749949842640,-207.18261099,0.00016997,2]
[365834834,1749949842650,-490.0,0.00016997,2]
[365834835,1749949842660,-490.0,0.00016997,2]
[365834836,1749949842669,-490.0,0.00016997,2]
[365834837,1749949842678,-490.0,0.00016997,2]
[365834838,1749949842687,-3304.68,0.00016997,2]
[365834839,1749949842696,-490.0,0.00016997,2]
[365834840,1749949842705,-490.0,0.00016997,2]
[365834841,1749949842715,-1527.08,0.00016997,2]
[365834842,1749949842724,-43105.54,0.00016997,2]
[365834843,1749949842733,-490.0,0.00016997,2]
[365834844,1749949842742,-442.09738903,0.00016997,2]
[365834845,1749949842762,-47.90261097,0.00016997,2]
[365834846,1749949842771,-458.43738903,0.00016997,2]
[365834847,1749949842783,-31.56261097,0.00016997,2]
[365834848,1749949842792,-490.0,0.00016997,2]
[365834849,1749949842801,-490.0,0.00016997,2]
[365834850,1749949842812,-428.73738908,0.00016997,2]
[365834851,1749949842842,-517.8,0.00016997,2]
[365834894,1749949843666,-1660.33261092,0.00016997,2]
[365834895,1749949843676,-483.06681187,0.00016997,2]
[365834896,1749949843685,-490.0,0.00016997,2]
[365834897,1749949843695,-490.0,0.00016997,2]
[365834898,1749949843704,-490.0,0.00016997,2]
[365834899,1749949843713,-490.0,0.00016997,2]
[365834900,1749949843722,-490.0,0.00016997,2]
[365834901,1749949843732,-490.0,0.00016997,2]
[365834902,1749949843741,-490.0,0.00016997,2]
[365834903,1749949843750,-429.0913091,0.00016997,2]
[365834904,1749949843759,-490.0,0.00016997,2]
[365834905,1749949843769,-17166.75,0.00016997,2]
[365834906,1749949843779,-490.0,0.00016997,2]
[365834907,1749949843788,-490.0,0.00016997,2]
[365834908,1749949843798,-490.0,0.00016997,2]
[365834909,1749949843807,-2016.99,0.00016997,2]
[365834910,1749949843815,-1000.0,0.00016997,2]
[365834911,1749949843824,-490.0,0.00016997,2]
[365834912,1749949843834,-490.0,0.00016997,2]
[365834913,1749949843843,-7013.01,0.00016997,2]
[365834914,1749949843852,-500.0,0.00016997,2]
[365834915,1749949843861,-490.0,0.00016997,2]
[365834916,1749949843870,-500.0,0.00016997,2]
[365834917,1749949843879,-500.0,0.00016997,2]
[365834918,1749949843887,-481.72645209,0.00016997,2]
[365834919,1749949843896,-490.0,0.00016997,2]
[365834920,1749949843906,-490.0,0.00016997,2]
[365834921,1749949843916,-1040.4,0.00016997,2]
[365834922,1749949843927,-827.65,0.00016997,2]
[365834923,1749949843935,-13846.08,0.00016997,2]
[365834924,1749949843945,-4433.76,0.00016997,2]
[365834925,1749949843956,-490.0,0.00016997,2]
[365834926,1749949843968,-17385.55,0.00016997,2]
[365834927,1749949843978,-490.0,0.00016997,2]
[365834928,1749949843987,-409.36263574,0.00016997,2]
[365834929,1749949843996,-490.0,0.00016997,2]
[365834930,1749949844006,-879.05,0.00016997,2]
[365834931,1749949844015,-490.0,0.00016997,2]
[365834932,1749949844024,-655.86,0.00016997,2]
[365834933,1749949844034,-1256.07,0.00016997,2]
[365834934,1749949844043,-490.0,0.00016997,2]
[365834935,1749949844053,-7740.79983486,0.00016997,2]
[365834936,1749949844067,-297.51016514,0.00016997,2]
[365834937,1749949844076,-874.11,0.00016997,2]
[365834938,1749949844085,-490.0,0.00016997,2]
[365834939,1749949844095,-490.0,0.00016997,2]
[365834940,1749949844104,-3402.71,0.00016997,2]
[365834941,1749949844113,-192.96672126,0.00016997,2]
[365834942,1749949844122,-490.0,0.00016997,2]
[365834943,1749949844131,-490.0,0.00016997,2]
[365834944,1749949844140,-5148.02,0.00016997,2]
[365834945,1749949844150,-964.48,0.00016997,2]
[365834946,1749949844160,-490.0,0.00016997,2]
[365834947,1749949844170,-11395.03,0.00016997,2]
[365834948,1749949844179,-3374.39,0.00016997,2]
[365834949,1749949844189,-490.0,0.00016997,2]
[365834950,1749949844199,-490.0,0.00016997,2]
[365834951,1749949844208,-495.62,0.00016997,2]
[365834952,1749949844217,-2359.95,0.00016997,2]
[365834953,1749949844227,-574.36,0.00016997,2]
[365834954,1749949844236,-490.0,0.00016997,2]
[365834955,1749949844245,-1259.79,0.00016997,2]
[365834956,1749949844255,-424.00017673,0.00016997,2]
[365834957,1749949844264,-490.0,0.00016997,2]
[365834958,1749949844273,-805.81,0.00016997,2]
[365834959,1749949844283,-490.0,0.00016997,2]
[365834960,1749949844292,-2259.75,0.00016997,2]
[365834961,1749949844302,-490.0,0.00016997,2]
[365834962,1749949844311,-490.0,0.00016997,2]
[365834963,1749949844321,-4208.65,0.00016997,2]
[365834964,1749949844331,-421.54344792,0.00016997,2]
[365834965,1749949844340,-1055.58,0.00016997,2]
[365834966,1749949844350,-694.39,0.00016997,2]
[365834967,1749949844359,-942.09,0.00016997,2]
[365834968,1749949844368,-490.52302679,0.00016997,2]
[365834969,1749949844375,-680.81,0.00016997,2]
[365834970,1749949844383,-917.09,0.00016997,2]
[365834971,1749949844391,-490.0,0.00016997,2]
[365834972,1749949844398,-2280.31,0.00016997,2]
[365834973,1749949844404,-4083.64,0.00016997,2]
[365834974,1749949844411,-490.0,0.00016997,2]
[365834975,1749949844419,-3381.62,0.00016997,2]
[365834976,1749949844427,-490.0,0.00016997,2]
[365834977,1749949844435,-490.0,0.00016997,2]
[365834978,1749949844444,-490.0,0.00016997,2]
[365834979,1749949844454,-2371.44,0.00016997,2]
[365834980,1749949844463,-490.0,0.00016997,2]
[365834981,1749949844474,-490.0,0.00016997,2]
[365834982,1749949844483,-490.0,0.00016997,2]
[365834983,1749949844492,-5547.2,0.00016997,2]
[365834984,1749949844502,-490.0,0.00016997,2]
[365834985,1749949844511,-15322.23,0.00016997,2]
[365834986,1749949844521,-490.0,0.00016997,2]
[365834987,1749949844530,-490.0,0.00016997,2]
[365834988,1749949844540,-2538.48,0.00016997,2]
[365834989,1749949844549,-490.0,0.00016997,2]
[365834990,1749949844559,-490.0,0.00016997,2]
[365834991,1749949844568,-510.76,0.00016997,2]
[365834992,1749949844578,-490.0,0.00016997,2]
[365834993,1749949844587,-490.0,0.00016997,2]
[365834994,1749949844596,-490.0,0.00016997,2]
[365834995,1749949844607,-2993.66,0.00016997,2]
[365834996,1749949844616,-5618.17,0.00016997,2]
[365834997,1749949844626,-490.0,0.00016997,2]